[Event "4th Tata Steel India Rapid Open 2022"]
[Site "Kolkota"]
[Date "2022.12.01"]
[Round "9.1"]
[White "So, Wesley"]
[Black "Gukesh D"]
[Result "1-0"]
[ECO "D38"]
[WhiteElo "2760"]
[BlackElo "2725"]
[Annotator "TA"]
[PlyCount "101"]
[EventDate "2022.11.29"]
[EventType "tourn"]
[EventCountry "IND"]
[SourceTitle "playchess.com"]
[Source "ChessBase"]
[SourceQuality "1"]
[TimeControl "900+10"]

{[%evp 12,101,10,16,25,23,31,19,27,20,33,31,62,24,20,17,0,23,17,0,0,9,0,0,0,0,0,0,0,-73,0,0,0,-38,104,62,120,106,161,161,171,161,220,226,217,212,214,199,319,316,305,304,304,261,407,387,710,709,648,393,377,391,393,393,391,377,402,405,852,648,5708,10415,10947,10204,1939,12843,12790,29937,12069,12849,29941,29940,29947,29945,12580,11789,29962,29963,29982,29983,29987,29988]} 1. d4 {[%emt 0:00:06]} Nf6 {[%emt 0:00:03]} 2. c4 {[%emt 0:00:04]} e6 {[%emt 0:00:11]} 3. Nc3 {[%emt 0:00:02]} Bb4 {[%emt 0:15:26]} 4. Nf3 {[%emt 0:15:38]} d5 {[%emt 0:00:00]} 5. Qa4+ {[%emt 0:00:00]} Nc6 {[%emt 0:00:00]} 6. e3 {[%emt 0:00:00]} O-O {[%emt 0:00:00]} 7. Bd2 {[%emt 0:00:00] 7.Qc2 is the modern continuation.} Re8 {[%emt 0:00:00] D38: Queen's Gambit Declined: Ragozin Defence (4 Nf3 Bb4).} 8. a3 {[%emt 0:00:00]} Bf8 {[%emt 0:00:00]} 9. Rd1 {[%emt 0:00:00]} (9. Be2 {keeps more tension.} dxc4 10. Bxc4 e5 11. Ng5) 9... h6 {[%emt 0:00:00] The position is equal.} 10. h3 {[%emt 0:00:00] [#]} dxc4 $146 {[%emt 0:00:00]} ({Predecessor:} 10... Bd7 11. Qc2 e5 12. dxe5 Nxe5 13. Nxd5 Nxf3+ 14. gxf3 Nxd5 15. cxd5 c6 16. Qb3 cxd5 17. Qxd5 {½-½ (60) Keymer,V (2675)-Niemann,H (2678) Prague 2022}) 11. Bxc4 {[%emt 0:00:00]} e5 {[%emt 0:00:00][%cal Re5d4]} 12. Qb3 {[%emt 0:00:00] White is more active.} (12. d5 {simplifies} Nb8 13. e4 Nbd7 14. Qc2) 12... Qd7 {[%emt 0:00:00][%cal Re5d4]} 13. Nxe5 {[%emt 0:00:00]} (13. dxe5 {with more complications.} Nxe5 14. Nxe5 Rxe5 15. Bc1) 13... Nxe5 {[%emt 0:00:00]} 14. dxe5 {[%emt 0:00:00]} Rxe5 {[%emt 0:00:00]} 15. Ne2 {[%emt 0:00:00] Threatens to win with Bc3.} b5 {[%emt 0:00:00]} 16. Bd3 {[%emt 0:00:00]} Qc6 {[%emt 0:00:00]} 17. Bc3 {[%emt 0:00:00]} Rg5 {[%emt 0:00:00]} (17... Be6 18. Qc2 Rg5 19. h4 $14) 18. Nf4 {[%emt 0:00:00]} Nh5 {[%emt 0:00:00]} 19. Qc2 $1 {[%emt 0:00:22]} Bb7 $1 {[%emt 0:00:00]} 20. f3 {[%emt 0:00:01]} (20. Nxh5 $11 {keeps the balance.} Qxg2 21. Nf6+ (21. Bh7+ Kh8 $17) 21... gxf6 22. Rf1) 20... Re8 {[%emt 0:00:00]} (20... Nxf4 $6 21. exf4 Re8+ 22. Be4 $11) (20... Qc5 $17 21. Nxh5 (21. Bh7+ Kh8 $15) 21... Qxe3+ 22. Kf1 Rxh5) 21. O-O $1 $11 {[%emt 0:00:30]} Rxe3 {[%emt 0:02:41]} 22. h4 {[%emt 0:00:03] [#]} Qc5 {[%emt 0:00:08]} 23. Bh7+ $16 {[%emt 0:00:28][%cal Bd3h7,Bh7c2,Bc2b3][%mdl 32] White stays focused until the end.} (23. hxg5 $2 Re2+ 24. Kh2 Rxc2 25. Bxc2 Nxf4 $19) 23... Kh8 {[%emt 0:00:00]} 24. Bd4 {[%emt 0:00:01][%mdl 64] Discovered Attack} Qxc2 {[%emt 0:00:28]} (24... Qe7 $16) 25. Bxc2 $18 {[%emt 0:00:02] Really sharp!} Nxf4 {[%emt 0:00:07]} 26. hxg5 {[%emt 0:00:01]} ({Worse is} 26. Bxe3 Rxg2+ 27. Kh1 Rxc2 $11) 26... Re6 {[%emt 0:00:12]} (26... Re2 $142 27. Rf2 hxg5 28. Bxa7 Re8) 27. Bxa7 {[%emt 0:00:18] Strongly threatening Rd8.} Bd6 {[%emt 0:00:08]} 28. Rfe1 {[%emt 0:00:19]} hxg5 {[%emt 0:00:12]} 29. Bb3 $40 {[%emt 0:00:23][%mdl 128] Against Bd5. White wants a kill.} Rf6 {[%emt 0:00:12]} (29... Rxe1+ $142 30. Rxe1 f6) 30. Bd4 {[%emt 0:00:14]} Rh6 {[%emt 0:00:08]} 31. Bxf7 {[%emt 0:00:19]} g4 {[%emt 0:00:06]} 32. fxg4 {[%emt 0:00:38][%cal Bf3g4,Bg4g5,Bg5g6][%mdl 32]} Bxg2 {[%emt 0:00:10]} (32... Kh7 $142 33. Kf2 Rh2) 33. g5 {[%emt 0:00:03]} Rh3 {[%emt 0:00:09]} (33... Rh1+ 34. Kf2 Rh3 35. Re8+ Kh7 36. g6+ Kh6 37. Rh8+ Kg5) 34. Re8+ {[%emt 0:00:38]} Kh7 {[%emt 0:00:01]} 35. g6+ {[%emt 0:00:06]} Kh6 {[%emt 0:00:01] Hoping for ...Rh1+.} 36. Rh8+ {[%emt 0:00:06]} Kg5 {[%emt 0:00:01]} 37. Rxh3 {[%emt 0:00:01]} ({Weaker is} 37. Bxg7 Rg3 $18) 37... Bxh3 {[%emt 0:00:01]} 38. Bxg7 {[%emt 0:00:07]} Bg4 {[%emt 0:00:04]} 39. Bc3 {[%emt 0:00:33] g7 is the strong threat.} ({Don't do} 39. Rd2 Bf3 40. Bc3 Nxg6 $18) 39... Bh5 {[%emt 0:00:35] [#]} (39... Nxg6 $142 40. Rd5+ Bf5) 40. Bd2 $1 {[%emt 0:00:18] aiming for Bxf4+.} Bxg6 {[%emt 0:00:21]} (40... Be5 41. Bxf4+) 41. Bxf4+ {[%emt 0:00:11]} Bxf4 {[%emt 0:00:01][%mdl 4096] Endgame KRB-KB} 42. Rd5+ {[%emt 0:00:01]} Kh6 {[%emt 0:00:02]} 43. Bxg6 {[%emt 0:00:02][%cal Od5b5]} c6 {[%emt 0:00:01]} 44. Rf5 {[%emt 0:00:16]} Be3+ {[%emt 0:00:02]} 45. Kf1 {[%emt 0:00:08] Be8 would kill now.} Kxg6 {[%emt 0:00:01] KR-KB} 46. Rf3 {[%emt 0:00:01]} Bc1 {[%emt 0:00:32]} 47. b4 {[%emt 0:00:01][%cal Bb2b4,Bb4c5][%mdl 32]} Bb2 {[%emt 0:00:40]} 48. Ke2 {[%emt 0:00:07] White threatens Kd1 and mate.} Bd4 {[%emt 0:00:02]} 49. Kd3 {[%emt 0:00:07] White mates.} c5 {[%emt 0:00:19]} 50. Ke4 {[%emt 0:00:06]} Kg5 {[%emt 0:00:10]} 51. bxc5 {[%emt 0:00:05] Weighted Error Value: White=0.24 (precise) /Black=0.56} 1-0

[Event "4th Tata Steel India Rapid Open 2022"]
[Site "Kolkota"]
[Date "2022.12.01"]
[Round "9.2"]
[White "Sethuraman, S.P."]
[Black "Nakamura, Hikaru"]
[Result "0-1"]
[ECO "B06"]
[WhiteElo "2643"]
[BlackElo "2768"]
[Annotator "TA"]
[PlyCount "148"]
[EventDate "2022.11.29"]
[EventType "tourn"]
[EventCountry "IND"]
[SourceTitle "playchess.com"]
[Source "ChessBase"]
[SourceQuality "1"]
[TimeControl "900+10"]

{[%evp 17,148,48,58,38,31,9,10,0,0,0,9,0,0,0,17,15,18,0,0,-9,-3,-4,-28,-47,-51,-109,-54,-77,-33,-22,-20,-43,-37,-43,-33,-49,-72,-102,-109,-205,-202,-205,-208,-189,-115,-111,-107,-110,0,0,0,-41,8,8,8,0,64,73,78,52,49,0,21,0,0,0,14,-8,-8,-59,-52,-68,-72,-73,-75,-70,-50,-64,0,-123,-151,-316,-312,-270,-267,-214,0,0,0,0,0,0,0,-627,-624,-608,-597,-578,-493,-1449,-1578,-29986,-29980,-29979,-29981,-29981,-29972,-29973,-29974,-29977,-29973,-29975,-29971,-29967,0,-85,-8,-8,-8,-8,-8,-8,-14,-28,-28,-28,-28,-28,-43,-43,-8,-29977,-29978]} 1. e4 {[%emt 0:00:02]} g6 {[%emt 0:00:00]} 2. d4 {[%emt 0:00:02]} Bg7 {[%emt 0:00:03]} 3. Nf3 {[%emt 0:00:06]} d6 {[%emt 0:00:03]} 4. c3 {[%emt 0:00:03]} Nc6 {[%emt 0:00:14]} 5. Bd3 {[%emt 0:00:10]} Nf6 {[%emt 0:00:03]} 6. h3 {[%emt 0:00:03]} O-O {[%emt 0:00:02]} 7. d5 {[%emt 0:00:23]} Nb8 {[%emt 0:00:04]} 8. c4 {[%emt 0:00:02]} e5 {[%emt 0:00:17]} 9. Nc3 {[%emt 0:00:07]} a5 {[%emt 0:00:02]} 10. Bg5 {[%emt 0:00:09]} Qe8 {[%emt 0:00:27]} 11. Qd2 {[%emt 0:00:13]} Nfd7 {[%emt 0:00:01]} 12. g4 {[%emt 0:00:51]} Nc5 {[%emt 0:00:06]} 13. Bc2 {[%emt 0:00:02]} Nba6 {[%emt 0:00:08]} 14. a3 {[%emt 0:01:47]} Bd7 {[%emt 0:00:31]} 15. Qe2 {[%emt 0:01:51]} Na4 {[%emt 0:02:33]} 16. Nxa4 {[%emt 0:00:30]} Bxa4 {[%emt 0:00:02]} 17. b3 {[%emt 0:00:02]} Bd7 {[%emt 0:00:02]} 18. Nd2 {[%emt 0:00:28]} c6 {[%emt 0:00:35]} 19. h4 {[%emt 0:01:35]} cxd5 {[%emt 0:00:12]} 20. exd5 {[%emt 0:01:01]} e4 {[%emt 0:00:25]} 21. Rd1 {[%emt 0:00:38]} (21. Rb1 $15) 21... f5 {[%emt 0:00:03]} ({Black should play} 21... Qe5 $17 22. O-O (22. Bxe4 $2 Rae8 $19) 22... Rae8) 22. gxf5 {[%emt 0:03:17]} gxf5 {[%emt 0:00:02]} (22... Bxf5 $5 {[%cal Re4e3]} 23. Bxe4 (23. Nxe4 Qe5 $15) 23... Nc5 24. Bxf5 Rxf5 $15) 23. Rg1 {[%emt 0:00:10]} Kh8 {[%emt 0:00:02]} 24. Bf4 {[%emt 0:01:40]} Qe7 {[%emt 0:00:34]} 25. Qe3 {[%emt 0:00:18]} Be5 {[%emt 0:00:56]} 26. Bxe5+ {[%emt 0:00:17]} Qxe5 {[%emt 0:00:01]} 27. f4 {[%emt 0:00:11]} Qf6 {[%emt 0:00:20]} 28. Rg5 {[%emt 0:01:04]} (28. Nb1 $17) 28... h6 $19 {[%emt 0:00:23]} 29. Rg3 {[%emt 0:00:02]} Rg8 {[%emt 0:00:34]} (29... Qxh4 30. Ke2 Rg8 31. Qc3+ Kh7 32. Nxe4 (32. Rdg1 Rxg3 33. Qxg3 Qxg3 $17) 32... Qh2+ 33. Kf1 Qh1+ 34. Kf2 Qh2+ 35. Kf1 Qh1+ 36. Kf2 Qh2+ 37. Kf1 $11) 30. Nf1 {[%emt 0:00:30]} Rxg3 {[%emt 0:00:30]} (30... Qxh4 31. Rd2 Rxg3 32. Qxg3 Qxg3+ 33. Nxg3 $17) (30... Kh7 $19 31. Rd2 Rxg3 32. Nxg3 Rg8) 31. Nxg3 $17 {[%emt 0:00:06]} Rg8 $1 {[%emt 0:00:07]} (31... Qxh4 32. Kd2 Rg8 33. Ne2 $15 (33. Nxe4 $2 fxe4 34. Qxe4 Rg7 $19)) 32. Kd2 {[%emt 0:00:08]} Rg4 {[%emt 0:01:41]} (32... b5 $1 $17 33. Ne2 (33. Nxe4 $2 fxe4 34. Rg1 Rxg1 $19) 33... bxc4 34. bxc4 Kh7) 33. Rg1 $15 {[%emt 0:00:36]} Rxh4 {[%emt 0:00:23]} 34. Ne2 {[%emt 0:00:13]} Be8 {[%emt 0:00:41]} (34... Rh2 $2 35. Qg3 Rxe2+ 36. Kxe2 $18) (34... Kh7 $15 {feels stronger.}) 35. Qd4 $11 {[%emt 0:00:47]} (35. Qg3 Rg4 36. Qf2 Rxg1 37. Qxg1 Bh5 $17) 35... Qxd4+ {[%emt 0:00:50]} 36. Nxd4 {[%emt 0:00:02]} Rg4 {[%emt 0:00:01]} (36... Rxf4 $11 37. Ke3 Rg4 38. Rxg4 fxg4) 37. Rh1 {[%emt 0:00:29]} Rg2+ {[%emt 0:01:23]} 38. Kc3 $1 {[%emt 0:00:29]} Rg3+ {[%emt 0:00:23]} 39. Kd2 {[%emt 0:00:01]} (39. Kb2 $14 {was preferrable.} Bg6 40. Nb5 (40. Rxh6+ Kg7 $11)) 39... Bg6 {[%emt 0:00:04]} 40. Rxh6+ {[%emt 0:00:35]} (40. Nb5 $5 {[%cal Rb5d6]}) 40... Kg7 {[%emt 0:00:01]} 41. Rh2 {[%emt 0:00:07]} Nc5 {[%emt 0:00:14]} 42. Re2 {[%emt 0:00:47]} (42. b4 $5 {[%cal Rb4c5]} Nd3 43. c5 $16) 42... Kf6 {[%emt 0:00:14]} 43. Re3 {[%emt 0:00:05]} (43. Rh2 $1 $11) 43... Rg4 $15 {[%emt 0:00:28]} 44. Ne2 $1 {[%emt 0:00:02]} (44. b4 axb4 45. axb4 Na6 $17) 44... Rh4 $1 {[%emt 0:00:11]} 45. b4 {[%emt 0:00:04]} Na6 {[%emt 0:00:15]} 46. Kc3 {[%emt 0:00:18]} axb4+ {[%emt 0:00:42]} 47. axb4 {[%emt 0:00:01]} Be8 {[%emt 0:00:01]} (47... b6 $15) 48. Bb3 {[%emt 0:00:27]} (48. Ng3 $1 $11) 48... Bh5 $1 $17 {[%emt 0:00:10]} 49. Ng3 $2 {[%emt 0:00:14]} (49. Nd4 $17 {was necessary.}) 49... Bf3 $19 {[%emt 0:00:02]} 50. Ba4 {[%emt 0:00:05]} Rxf4 {[%emt 0:00:46]} 51. Bd7 {[%emt 0:00:01]} Bg4 $2 {[%emt 0:00:03]} (51... Ke5 $1 $19 {Threatens to win with ...Rg4.} 52. Nxf5 Rxf5 53. Bxf5 Kxf5) 52. Bc8 $11 {[%emt 0:00:08]} Rf2 {[%emt 0:02:24]} 53. Nxe4+ {[%emt 0:00:24]} fxe4 {[%emt 0:00:00]} 54. Bxg4 {[%emt 0:00:01]} Ke5 {[%emt 0:00:01]} 55. Bc8 $2 {[%emt 0:00:06][%mdl 8192]} (55. Rh3 $11) 55... Kf4 $1 $19 {[%emt 0:00:04]} 56. Re1 {[%emt 0:00:02]} Rf3+ {[%emt 0:00:02]} 57. Kd2 {[%emt 0:00:18]} Nxb4 {[%emt 0:00:02]} 58. Bxb7 {[%emt 0:00:08]} (58. Rh1 $142 Rd3+ 59. Ke2) 58... Rd3+ $19 {[%emt 0:00:36]} 59. Ke2 {[%emt 0:00:15]} Re3+ {[%emt 0:00:09]} 60. Kd2 {[%emt 0:00:10]} Rxe1 {[%emt 0:00:10]} 61. Kxe1 {[%emt 0:00:07]} Ke3 {[%emt 0:00:01]} 62. Bc8 {[%emt 0:00:26]} Nd3+ {[%emt 0:00:55]} 63. Kf1 {[%emt 0:00:12]} Kd4 {[%emt 0:00:26]} 64. Ke2 {[%emt 0:00:09]} Nc5 {[%emt 0:00:08]} ({Inferior is} 64... Kxc4 65. Ke3 $11) 65. Be6 {[%emt 0:00:07] [#]} Nd3 $2 {[%emt 0:00:28]} ({Weaker is} 65... Kxc4 66. Ke3 $11) (65... Na4 $1 {mates} 66. Kf2 Nb2 67. c5 Nd3+ 68. Ke2 Nxc5 69. Bg8 Nd3 70. Bf7 Nf4+ 71. Ke1 e3 72. Be8 Kxd5 73. Bd7 Kd4 74. Kf1 Kd3 75. Bg4 Kd2 76. Bf3 e2+ 77. Bxe2 Nxe2 78. Kf2 d5 79. Kf3 d4 80. Kg4 d3 81. Kf3 Kc2 82. Kg4 d2 83. Kf5 d1=Q 84. Ke6 Qd8 85. Ke5 Kd3 86. Kf5 Qd6 87. Kg5 Ke4 88. Kg4 Qg3+ 89. Kh5 Nf4+ 90. Kh6 Qg6#) 66. Bf5 {[%emt 0:00:01] [#]} (66. Bc8 $11 {remains equal.} Nf4+ 67. Kf1 Kxc4 68. Be6) 66... Nf4+ {[%emt 0:00:19]} ({Much weaker is} 66... Kxc4 $6 67. Ke3 $11) ({Better is} 66... Ke5 $1 $17 {[%cal Re5f5]} 67. Bc8 Kd4) 67. Kf2 $11 {[%emt 0:00:07]} e3+ {[%emt 0:00:07]} (67... Nh5 {simplifies} 68. c5 Kxc5 69. Ke3 Kxd5 70. Bxe4+ Kc4) 68. Kf3 {[%emt 0:00:06]} e2 {[%emt 0:00:25]} 69. Kf2 {[%emt 0:00:02]} Kxc4 {[%emt 0:00:12]} 70. Ke1 {[%emt 0:00:23]} Kc3 {[%emt 0:01:07]} 71. Bh7 {[%emt 0:00:15]} Kd4 {[%emt 0:00:02]} 72. Kd2 {[%emt 0:00:02]} Ke5 {[%emt 0:00:10]} 73. Bc2 {[%emt 0:00:14]} Kf6 {[%emt 0:00:12]} 74. Bb3 $2 {[%emt 0:00:18][%mdl 8192]} (74. Be4 $11) 74... Nd3 $1 {[%emt 0:00:03]} 0-1

[Event "4th Tata Steel India Rapid Open 2022"]
[Site "Kolkota"]
[Date "2022.12.01"]
[Round "9.3"]
[White "Mamedyarov, Shakhriyar"]
[Black "Vidit, Santosh Gujrathi"]
[Result "1/2-1/2"]
[ECO "D41"]
[WhiteElo "2741"]
[BlackElo "2724"]
[Annotator "TA"]
[PlyCount "72"]
[EventDate "2022.11.29"]
[EventType "tourn"]
[EventCountry "IND"]
[SourceTitle "playchess.com"]
[Source "ChessBase"]
[SourceQuality "1"]
[TimeControl "900+10"]

{[%evp 13,72,9,30,12,68,68,76,74,90,85,99,98,103,97,109,107,133,105,106,107,112,105,118,122,109,96,102,79,87,92,83,89,117,109,114,99,140,0,0,0,0,0,0,-50,-48,-33,-27,-27,-22,-243,-272,-273,0,0,0,0,0,0,0,0,0]} 1. d4 {[%emt 0:00:00]} Nf6 {[%emt 0:00:06]} 2. c4 {[%emt 0:00:01]} e6 {[%emt 0:00:02]} 3. Nf3 {[%emt 0:00:02]} d5 {[%emt 0:00:05]} 4. Nc3 {[%emt 0:00:02]} c5 {[%emt 0:00:03]} 5. cxd5 {[%emt 0:00:08]} cxd4 {[%emt 0:00:02]} 6. Qa4+ {[%emt 0:00:01]} (6. Qxd4 exd5 7. Bg5 Be7 8. e3 O-O 9. Be2 h6 10. Bh4 Nc6 11. Qd1 Be6 12. O-O Rc8 13. a3 Ne4 14. Bxe7 Nxe7 15. Nxe4 dxe4 16. Nd4 Bd5 17. Qd2 Qb6 18. Rac1 Rxc1 19. Rxc1 Rd8 20. h3 Nc6 21. Nxc6 Bxc6 22. Qc3 {1-0 (57) Mamedyarov,S (2767)-Vidit,S (2727) Warsaw 2021}) 6... Bd7 {[%emt 0:00:14]} 7. Qxd4 {[%emt 0:00:02]} exd5 {[%emt 0:00:35]} 8. Nxd5 {[%emt 0:00:07] aiming for Qe5+. D41: Queen's Gambit Declined: Semi-Tarrasch with 5 cxd5.} Nxd5 {[%emt 0:00:31]} (8... Qa5+ $11 9. Nc3 Nc6 10. Qe3+ Be6) 9. Qxd5 $14 {[%emt 0:00:05][%cal Oc1d2]} Nc6 {[%emt 0:06:31]} 10. e3 {[%emt 0:00:32] White is better.} Bb4+ {[%emt 0:00:51]} 11. Bd2 {[%emt 0:00:08]} Qe7 {[%emt 0:01:43]} 12. a3 {[%emt 0:02:49]} Bxd2+ {[%emt 0:00:06]} 13. Qxd2 {[%emt 0:00:02]} (13. Kxd2 $6 Rd8 14. Ke1 O-O $11) (13. Nxd2 O-O $11) 13... O-O-O {[%emt 0:00:45]} 14. Qc3 {[%emt 0:00:18]} Kb8 {[%emt 0:01:11]} 15. Be2 {[%emt 0:00:20]} g5 {[%emt 0:00:19] [#]} 16. O-O $146 {[%emt 0:00:05]} ({Predecessor:} 16. Rd1 g4 17. Nd4 h5 18. O-O Ne5 19. Qb4 Qf6 20. Rd2 h4 21. Nb3 Bc6 22. Rxd8+ Rxd8 {1-0 (87) Jobava,B (2603)-Vidit,S (2726) chess24.com INT 2021}) 16... g4 {[%emt 0:01:44]} 17. Nd4 {[%emt 0:00:05]} (17. Nd2 {simplifies} h5 18. Rac1 Qe5 19. Qxe5+ Nxe5 20. Nb3) 17... Ne5 {[%emt 0:00:05]} 18. Rac1 {[%emt 0:00:55] And now Qc7+ would win.} (18. Rfc1 {simplifies} Rc8 19. Qd2 h5 20. Rxc8+ Bxc8 21. Qa5) 18... Rc8 {[%emt 0:00:13] Prevents Qc7+.} 19. Qa5 {[%emt 0:00:13]} (19. Qd2 {simplifies} h5 20. Rxc8+ Rxc8 21. Rc1) 19... h5 {[%emt 0:00:17]} 20. Bb5 {[%emt 0:01:26] White is more active.} (20. Rxc8+ {simplifies} Rxc8 21. g3 Qc5 22. Qxc5 Rxc5 23. Rd1) 20... b6 {[%emt 0:00:11]} 21. Qa4 {[%emt 0:00:18]} (21. Rxc8+ {simplifies} Rxc8 22. Qa4 Bxb5 23. Qxb5 Qc5 24. a4) 21... Bxb5 {[%emt 0:01:16]} 22. Qxb5 {[%emt 0:00:09]} h4 {[%emt 0:00:02]} 23. Qd5 {[%emt 0:01:02]} h3 {[%emt 0:00:23]} 24. Rfd1 {[%emt 0:01:42]} Qf6 {[%emt 0:00:42][%cal Oe5d3]} 25. g3 {[%emt 0:02:20]} (25. Qe4 $16) 25... Nd3 $11 {[%emt 0:00:38][%mdl 64] [#]} 26. Rxc8+ {[%emt 0:03:28]} Rxc8 {[%emt 0:00:01]} 27. Nf5 {[%emt 0:00:01] The board is on fire.} (27. Rxd3 $2 Rc1+) 27... Rd8 {[%emt 0:00:20]} 28. Qe4 {[%emt 0:00:19] [#]} ({Better is} 28. Qb5 $11 a6 29. Qb3 (29. Qxa6 $2 Qxb2 30. Rf1 Nxf2 $19) 29... Qxf5 30. Qxb6+ Kc8 31. Qc6+ (31. Qxa6+ Kc7 $17) 31... Kb8 32. Qb6+ Kc8 33. Qc6+ (33. Qxa6+ Kc7 $17) 33... Kb8 34. Qb6+) 28... Qxb2 $1 $15 {[%emt 0:00:04]} 29. Rf1 {[%emt 0:00:05] Black must now prevent Qe7.} Ne5 {[%emt 0:00:28] Hoping for ...Nf3+.} 30. Nd4 {[%emt 0:00:02] Inhibits Nf3+.} f6 {[%emt 0:00:04]} 31. Qh7 $2 {[%emt 0:00:33]} (31. Nc6+ $1 $11 {and White has nothing to worry.} Nxc6 32. Qxc6) 31... Rc8 $19 {[%emt 0:00:28]} 32. a4 {[%emt 0:01:36]} Rc1 $2 {[%emt 0:00:12]} (32... Qa2 $19 {( -> ...Qd5)} 33. Re1 (33. Qe4 $2 Qc4 $19) 33... Rc7) 33. Qg8+ $11 {[%emt 0:00:30] The position is equal.} (33. Qh8+ Kb7 34. Qg8 Ka6 $19) 33... Kb7 {[%emt 0:00:08]} 34. Qd5+ {[%emt 0:00:03]} Kb8 {[%emt 0:00:06]} 35. Qg8+ {[%emt 0:00:23]} Kb7 {[%emt 0:00:06] Strongly threatening ...Ka6.} 36. Qd5+ {[%emt 0:00:03]} Kb8 {[%emt 0:00:06] Weighted Error Value: White=0.26 (precise) /Black=0.24 (precise)} 1/2-1/2